[Event "CCT Chessable Masters Playin Match 2025"]
[Site "Online"]
[Date "2025.02.17"]
[Round "1.1"]
[White "Duda, Jan-Krzysztof"]
[Black "Aravindh, Chithambaram VR."]
[Result "1-0"]
[Annotator "TA"]
[ECO "E26"]
[WhiteElo "2739"]
[BlackElo "2729"]
[PlyCount "139"]
[EventDate "2025.02.13"]
[EventType "k.o."]
[EventCountry "NET"]
[SourceTitle "playchess.com"]
[Source "ChessBase"]
[SourceQuality "1"]
[TimeControl "600"]

{[%evp 14,139,0,0,3,-3,2,-10,52,38,35,19,24,21,24,30,50,40,45,38,37,-211,-196,-195,-199,-195,-210,-207,-213,-216,-217,-214,-216,-233,-260,-351,-362,-325,-311,-341,-349,-357,-334,-383,-383,-411,-409,-402,-366,-318,-69,-110,-114,-78,-56,-74,-48,-174,-174,-175,-168,-168,0,0,0,0,0,0,0,0,0,0,0,0,0,0,0,0,0,0,0,0,0,0,0,0,0,0,0,0,0,0,0,0,0,0,0,0,0,0,0,0,0,0,0,0,0,0,0,0,0,0,0,0,0,0,0,0,0,0,0,0,0,0,0,0,0,0]} 1. d4 {[%emt 0:00:01]} Nf6 {[%emt 0:00:03]} 2. c4 {[%emt 0:00:00]} e6 {[%emt 0:00:01]} 3. Nc3 {[%emt 0:00:01]} Bb4 {[%emt 0:00:05]} 4. a3 {[%emt 0:00:00]} Bxc3+ {[%emt 0:00:02]} 5. bxc3 {[%emt 0:00:00]} c5 {[%emt 0:00:06]} 6. e3 {[%emt 0:00:02]} b6 {[%emt 0:00:04]} 7. Bd3 {[%emt 0:00:03]} Nc6 {[%emt 0:00:07]} 8. e4 {[%emt 0:00:09]} d6 {[%emt 0:00:09] E26: Nimzo-Indian: Sämisch: 5...c5 6 e3.} 9. Ne2 {[%emt 0:00:04][%cal Bg1e2,Be2g3,Bg3h5][%mdl 32]} Na5 $5 {[%emt 0:00:40][%mdl 4] Leaves trodden paths.} 10. Bg5 {[%emt 0:00:06]} Qc7 $146 {[%emt 0:00:09]} (10... h6 $11 11. Bh4 Ba6) (10... h6 11. Bh4 e5 12. O-O Ba6 13. d5 Qd7 14. Bxf6 gxf6 15. Ng3 Bxc4 16. Nh5 O-O-O 17. Nxf6 {1-0 Khuslen,E (1439)-Romany,J (1747) Wch U14 Girls 2022 (9)}) 11. Bxf6 {[%emt 0:00:08]} gxf6 {[%emt 0:00:00]} 12. Ng3 {[%emt 0:00:05]} Bb7 {[%emt 0:00:20][%cal Of6f5]} 13. Nh5 {[%emt 0:00:15]} Qe7 {[%emt 0:00:22]} 14. O-O {[%emt 0:00:21]} Rg8 {[%emt 0:00:04][%cal Of6f5]} 15. Qf3 {[%emt 0:00:14]} Rg6 {[%emt 0:00:56]} 16. d5 {[%emt 0:00:15]} O-O-O {[%emt 0:01:04] [#]} 17. e5 $2 {[%emt 0:00:06]} fxe5 $1 $19 {[%emt 0:00:32]} 18. Bxg6 {[%emt 0:00:04]} hxg6 {[%emt 0:00:30]} 19. Qf6 {[%emt 0:00:13] [#]} Kd7 {[%emt 0:00:18]} 20. dxe6+ {[%emt 0:00:05]} Qxe6 {[%emt 0:00:00]} 21. Qxe6+ {[%emt 0:00:03]} Kxe6 {[%emt 0:00:09]} 22. Ng3 {[%emt 0:00:01]} Nxc4 {[%emt 0:00:12]} 23. f4 {[%emt 0:00:14]} f5 {[%emt 0:00:21]} 24. fxe5 {[%emt 0:00:12]} dxe5 {[%emt 0:00:00]} 25. Rfd1 {[%emt 0:00:06]} Bd5 {[%emt 0:00:28]} 26. a4 {[%emt 0:00:05]} e4 {[%emt 0:00:05]} 27. Ne2 {[%emt 0:00:17]} Ke5 {[%emt 0:00:01] Against Nf4} 28. h4 {[%emt 0:00:10]} f4 {[%emt 0:00:20]} 29. a5 {[%emt 0:00:36]} b5 {[%emt 0:00:11]} (29... bxa5 30. Rab1) (29... Nxa5 30. g3 fxg3 31. Nxg3 $19) 30. a6 {[%emt 0:00:33]} Ne3 {[%emt 0:00:33]} 31. Rd2 {[%emt 0:00:07]} Rh8 $2 {[%emt 0:00:04]} (31... Rf8 $19 {aiming for ...Nc4.} 32. g3 f3) 32. Nxf4 $1 $15 {[%emt 0:00:22]} Kxf4 {[%emt 0:00:03]} 33. Re1 {[%emt 0:00:01]} b4 {[%emt 0:00:30]} (33... Rxh4 34. Rf2+ Ke5 35. Rxe3 $11) 34. cxb4 {[%emt 0:00:33]} cxb4 {[%emt 0:00:00][%cal Oh8b8]} (34... Rxh4 35. bxc5 Nxg2 36. Rf2+ (36. Rxg2 e3 $17) (36. Kxg2 Rg4+ 37. Kf1 Ke5 $16) 36... Ke5 37. Rxg2 $18) 35. Rf2+ {[%emt 0:00:00]} ({Only move:} 35. g3+ $1 $15 Ke5 (35... Kxg3 36. Rxe3+ Kf4 37. Re1 $15) (35... Kf3 36. Rf2+ Kxg3 37. Rxe3+ Kg4 38. Kg2 $14) 36. Rxe3) 35... Ke5 $19 {[%emt 0:00:01]} 36. Rxe3 {[%emt 0:00:00][%mdl 4096] Endgame KRR-KRB} b3 {[%emt 0:00:06][%cal Oh8b8]} (36... Rxh4 37. Rf8 $15) 37. Rg3 {[%emt 0:00:06] [#]} Rb8 $2 {[%emt 0:00:21]} (37... Rxh4 38. Rg5+ Ke6 (38... Kd6 $2 39. Rd2 $18) 39. Rxg6+ Ke7 (39... Ke5 40. Rg5+ Ke6 41. Rf8 $14) 40. Rg5 $16 (40. Rg7+ Kd6 $18)) ({Black should try} 37... Bc4 $1 $19 38. Rd2 Bd3 (38... Bxa6 39. Rxb3 Rxh4 40. Rd7 $16) (38... Rxh4 39. Rc3 $11) 39. Rxg6 Rb8 (39... Rxh4 40. Rg7 $11)) 38. Rg5+ $1 $11 {[%emt 0:00:04] The position is equal.} (38. Rxg6 $2 b2 39. Rg5+ Kd6 $19) 38... Kd4 {[%emt 0:00:00]} 39. Rd2+ {[%emt 0:00:02]} (39. Rxg6 $2 {loses.} b2 40. Rd2+ Kc3 $19) 39... Ke3 $1 {[%emt 0:00:01]} 40. Rgxd5 {[%emt 0:00:09]} b2 {[%emt 0:00:01]} 41. Rxb2 {[%emt 0:00:01]} Rxb2 {[%emt 0:00:02] KR-KR} 42. Rd7 {[%emt 0:00:07]} Kf4 {[%emt 0:00:19]} 43. Kh2 {[%emt 0:00:04]} Kg4 {[%emt 0:00:02]} 44. Rxa7 {[%emt 0:00:06]} Ra2 {[%emt 0:00:06]} 45. Re7 {[%emt 0:00:06]} Kxh4 {[%emt 0:00:06]} 46. Rxe4+ {[%emt 0:00:02]} Kg5 {[%emt 0:00:01]} 47. Re6 {[%emt 0:00:01]} Kf5 {[%emt 0:00:01]} 48. Rb6 {[%emt 0:00:01]} Ra3 {[%emt 0:00:02]} 49. g3 {[%emt 0:00:06]} g5 {[%emt 0:00:03]} 50. Kh3 {[%emt 0:00:02]} Ra4 {[%emt 0:00:01]} 51. Rc6 {[%emt 0:00:12]} Ra1 {[%emt 0:00:01]} 52. Rc5+ {[%emt 0:00:18]} Kg6 {[%emt 0:00:03]} 53. Rc6+ {[%emt 0:00:00]} Kf5 {[%emt 0:00:01]} 54. Rd6 {[%emt 0:00:00]} g4+ {[%emt 0:00:03]} 55. Kg2 {[%emt 0:00:02]} Ra2+ {[%emt 0:00:00]} 56. Kf1 {[%emt 0:00:01]} Ke4 {[%emt 0:00:00]} 57. Rf6 {[%emt 0:00:02]} Ke3 {[%emt 0:00:01]} 58. Kg1 {[%emt 0:00:24]} Ra1+ {[%emt 0:00:01]} 59. Kg2 {[%emt 0:00:02]} Ra2+ {[%emt 0:00:01]} 60. Kh1 {[%emt 0:00:00]} Ra1+ {[%emt 0:00:00]} 61. Kh2 {[%emt 0:00:01]} Ra2+ {[%emt 0:00:00]} 62. Kg1 {[%emt 0:00:00]} Ra1+ {[%emt 0:00:01]} 63. Rf1 {[%emt 0:00:01]} Rxa6 {[%emt 0:00:00]} 64. Kh1 {[%emt 0:00:02]} Ra3 {[%emt 0:00:02]} 65. Kh2 {[%emt 0:00:02]} Rd3 {[%emt 0:00:00]} 66. Kg1 {[%emt 0:00:04]} Rd2 {[%emt 0:00:01]} 67. Ra1 {[%emt 0:00:03]} Ke2 {[%emt 0:00:01] ( -> ...Rd1+)} (67... Kf3 $5) 68. Kg2 {[%emt 0:00:02]} Ke3+ {[%emt 0:00:01]} 69. Kf1 {[%emt 0:00:00]} Rd3 70. Kg2 {[%emt 0:00:06][%mdl 32768] Weighted Error Value: White=0.16 (very precise) /Black=0.17 (very precise)  Sensor Board Error (Ke4/e5)?  Loses game:     	White=1     	---        Missed win:     	---       	Black=2      Mistake:       	White=1     	Black=1      Inaccurate:     	White=1     	Black=1      OK:         	White=22    	Black=29     Best:        	White=3     	Black=5      Strong:       	White=2     	Black=2} 1-0

[Event "CCT Chessable Masters Playin Match 2025"]
[Site "Online"]
[Date "2025.02.17"]
[Round "1.1"]
[White "Vachier-Lagrave, Maxime"]
[Black "Sevian, Samuel"]
[Result "1/2-1/2"]
[Annotator "ChessBase"]
[ECO "C83"]
[WhiteElo "2729"]
[BlackElo "2692"]
[PlyCount "66"]
[EventDate "2025.02.13"]
[EventType "k.o."]
[EventCountry "NET"]
[SourceTitle "playchess.com"]
[Source "ChessBase"]
[SourceQuality "1"]
[TimeControl "600"]

1. e4 {[%emt 0:00:00]} e5 {[%emt 0:00:01]} 2. Nf3 {[%emt 0:00:01]} Nc6 {[%emt 0:00:00]} 3. Bb5 {[%emt 0:00:01]} a6 {[%emt 0:00:01]} 4. Ba4 {[%emt 0:00:00]} Nf6 {[%emt 0:00:00]} 5. O-O {[%emt 0:00:01]} Nxe4 {[%emt 0:00:08]} 6. d4 {[%emt 0:00:01]} b5 {[%emt 0:00:01]} 7. Bb3 {[%emt 0:00:01]} d5 {[%emt 0:00:01]} 8. dxe5 {[%emt 0:00:01]} Be6 {[%emt 0:00:00]} 9. c3 {[%emt 0:00:03]} Be7 {[%emt 0:00:03]} 10. Bf4 {[%emt 0:00:03]} O-O {[%emt 0:00:07]} 11. Nbd2 {[%emt 0:00:07]} Nc5 {[%emt 0:00:15]} 12. Bc2 {[%emt 0:00:36]} d4 {[%emt 0:00:10]} 13. Nb3 {[%emt 0:00:24]} d3 {[%emt 0:02:32]} 14. Nxc5 {[%emt 0:00:20]} dxc2 {[%emt 0:00:02]} 15. Qxd8 {[%emt 0:00:02]} Raxd8 {[%emt 0:00:03]} 16. Nxe6 {[%emt 0:00:15]} fxe6 {[%emt 0:00:00]} 17. Be3 {[%emt 0:00:08]} Rd5 {[%emt 0:00:05]} 18. Rac1 {[%emt 0:00:02]} Nxe5 {[%emt 0:00:08]} 19. Nxe5 {[%emt 0:00:06]} Rxe5 {[%emt 0:00:00]} 20. Rxc2 {[%emt 0:00:01]} Bc5 {[%emt 0:00:05]} 21. Bxc5 {[%emt 0:00:09]} Rxc5 {[%emt 0:00:00]} 22. Rd1 {[%emt 0:00:09]} Rd5 {[%emt 0:00:01]} 23. Rxd5 {[%emt 0:00:06]} exd5 {[%emt 0:00:00]} 24. Rd2 {[%emt 0:00:01]} c6 {[%emt 0:00:06]} 25. f3 {[%emt 0:00:11]} Kf7 {[%emt 0:00:01]} 26. Kf2 {[%emt 0:00:06]} Ke6 {[%emt 0:00:01]} 27. b4 {[%emt 0:00:02]} Kd6 {[%emt 0:00:11]} 28. Ke3 {[%emt 0:00:07]} Re8+ {[%emt 0:00:29]} 29. Kd3 {[%emt 0:00:01]} Re1 {[%emt 0:00:01]} 30. Re2 {[%emt 0:00:02]} Rd1+ {[%emt 0:00:01]} 31. Rd2 {[%emt 0:00:01]} Re1 {[%emt 0:00:02]} 32. Re2 {[%emt 0:00:01]} Rd1+ {[%emt 0:00:00]} 33. Rd2 {[%emt 0:00:00]} Re1 {[%emt 0:00:20]} 1/2-1/2

[Event "CCT Chessable Masters Playin Match 2025"]
[Site "Online"]
[Date "2025.02.17"]
[Round "1.1"]
[White "Yu, Yangyi"]
[Black "Yakubboev, Nodirbek"]
[Result "1-0"]
[Annotator "TA"]
[ECO "B12"]
[WhiteElo "2715"]
[BlackElo "2659"]
[PlyCount "63"]
[EventDate "2025.02.13"]
[EventType "k.o."]
[EventCountry "NET"]
[SourceTitle "playchess.com"]
[Source "ChessBase"]
[SourceQuality "1"]
[TimeControl "600"]

{[%evp 9,63,7,11,-3,22,12,19,4,6,0,0,-6,0,-2,0,-7,13,18,66,59,70,59,56,38,78,52,77,71,78,65,72,75,143,139,158,138,144,106,202,200,218,201,327,303,343,334,489,484,454,452,520,482,533,511,1054,1047]} 1. e4 {[%emt 0:00:00]} c6 {[%emt 0:00:06]} 2. d4 {[%emt 0:00:02]} d5 {[%emt 0:00:01]} 3. e5 {[%emt 0:00:01]} Bf5 {[%emt 0:00:01]} 4. h4 {[%emt 0:00:01]} h5 {[%emt 0:00:02]} 5. Bd3 {[%emt 0:00:01]} Bxd3 {[%emt 0:00:02]} 6. Qxd3 {[%emt 0:00:00][%cal Oe5e6] B12: Caro-Kann: Advance Variation.} Qa5+ {[%emt 0:00:00] is now more promising than 6...e6.} 7. Nd2 {[%emt 0:00:04][%cal Oe5e6]} e6 {[%emt 0:00:06]} 8. Ngf3 {[%emt 0:00:03] The position is equal.} Qa6 {[%emt 0:00:08]} 9. c4 {[%emt 0:00:01]} Nh6 {[%emt 0:00:06]} 10. O-O {[%emt 0:00:04]} Nf5 {[%emt 0:00:02]} 11. b3 {[%emt 0:00:50]} Nd7 {[%emt 0:00:12]} 12. a4 {[%emt 0:00:07][%cal Ba2a4,Ba4a5][%mdl 32]} Bb4 {[%emt 0:00:18]} 13. Ba3 {[%emt 0:00:09]} Qa5 {[%emt 0:01:00]} (13... Bxd2 $11 {is more appropriate.} 14. Qxd2 dxc4) 14. Bxb4 $14 {[%emt 0:00:11]} Qxb4 {[%emt 0:00:00]} 15. a5 {[%emt 0:00:01]} O-O {[%emt 0:00:27]} 16. Rfc1 $146 {[%emt 0:01:00]} (16. g3 f6 17. exf6 gxf6 18. Rfe1 Ng7 19. Nf1 Qe7 20. Ne3 Qf7 21. cxd5 cxd5 22. Rac1 {0-1 Silva,K (2224)-Kropff Gomez,R (2047) Florianopolis Winter op 8th 2024 (3)}) 16... Rfc8 {[%emt 0:00:43]} 17. g3 {[%emt 0:00:06]} Qe7 {[%emt 0:00:40]} 18. Nf1 {[%emt 0:00:42]} Nf8 {[%emt 0:00:22]} 19. Ne3 {[%emt 0:00:08]} Nxe3 {[%emt 0:00:32]} 20. Qxe3 {[%emt 0:00:00]} f6 {[%emt 0:00:35] White has space advantage and is better} (20... b6 $142) 21. exf6 $16 {[%emt 0:00:19]} gxf6 {[%emt 0:00:01]} 22. a6 {[%emt 0:00:10]} b6 {[%emt 0:00:07]} 23. Rc2 {[%emt 0:00:07] White is more active.} Rd8 {[%emt 0:01:02]} (23... Rc7 $16 24. cxd5 cxd5 25. Rxc7 Qxc7) 24. cxd5 $18 {[%emt 0:00:05]} cxd5 {[%emt 0:00:01]} 25. Rac1 {[%emt 0:00:01] aiming for Qh6.} Rd7 {[%emt 0:00:02]} (25... Kg7 $142 26. Ne1 (26. Rc7 Rd7 $18) 26... Rd7) 26. Qh6 {[%emt 0:00:13]} Qg7 {[%emt 0:00:43]} 27. Qxh5 {[%emt 0:00:07]} Qg6 {[%emt 0:00:01]} (27... Qf7 {keeps fighting.} 28. Qxf7+ Kxf7) 28. Qxg6+ {[%emt 0:00:04] White is clearly winning.} Nxg6 {[%emt 0:00:01]} 29. h5 {[%emt 0:00:13]} Ne7 {[%emt 0:00:13]} 30. Rc7 {[%emt 0:00:04]} Rad8 {[%emt 0:00:05]} 31. Rb7 {[%emt 0:00:01]} Rxb7 {[%emt 0:00:36]} (31... Nf5 $142 32. Rcc7 Rxc7 33. Rxc7 Ra8) 32. axb7 {[%emt 0:00:01] Weighted Error Value: White=0.05 (flawless) /Black=0.51  Mistake:       	---       	Black=6      Inaccurate:     	White=1     	Black=1      OK:         	White=13    	Black=8      Best:        	White=2     	---} 1-0

[Event "CCT Chessable Masters Playin Match 2025"]
[Site "Online"]
[Date "2025.02.17"]
[Round "1.1"]
[White "Andreikin, Dmitry"]
[Black "Esipenko, Andrey"]
[Result "1-0"]
[Annotator "TA"]
[ECO "D37"]
[WhiteElo "2695"]
[BlackElo "2695"]
[PlyCount "201"]
[EventDate "2025.02.13"]
[EventType "k.o."]
[EventCountry "NET"]
[SourceTitle "playchess.com"]
[Source "ChessBase"]
[SourceQuality "1"]
[TimeControl "600"]

{[%evp 11,201,-11,4,-18,-8,-10,0,7,8,12,2,0,15,13,19,12,108,36,37,17,13,11,18,8,11,6,8,11,34,25,85,0,0,0,32,0,12,0,0,0,0,0,0,0,0,-32,78,81,89,112,123,151,132,0,154,143,145,0,14,0,0,0,0,0,5,8,13,8,8,14,14,0,0,0,0,-7,-6,-6,-7,-7,-6,-7,75,75,75,75,75,75,75,75,75,75,75,75,75,75,75,75,75,75,75,75,75,75,75,75,75,0,75,75,75,75,75,75,75,75,75,75,75,75,75,75,75,75,75,75,75,75,75,75,75,75,259,259,259,259,259,259,259,259,259,245,245,223,223,223,223,223,223,223,259,259,259,259,259,259,259,259,259,259,259,259,259,259,259,252,259,252,252,230,252,245,237,230,230,230,230,230,230,223,230,183,183,183,223,210,210,182,208,168,29985,29986]} 1. d4 {[%emt 0:00:00]} Nf6 {[%emt 0:00:02]} 2. c4 {[%emt 0:00:01]} e6 {[%emt 0:00:01]} 3. Nf3 {[%emt 0:00:01]} d5 {[%emt 0:00:02]} 4. e3 {[%emt 0:00:02]} Be7 {[%emt 0:00:01]} 5. Nc3 {[%emt 0:00:02]} O-O {[%emt 0:00:01]} 6. a3 {[%emt 0:00:01]} c5 {[%emt 0:00:19]} 7. dxc5 {[%emt 0:00:01] D37: Queen's Gambit Declined: 5 Bf4.} dxc4 {[%emt 0:00:04] is now more promising than 7...Bxc5.} 8. Qc2 {[%emt 0:00:01]} Qa5 {[%emt 0:00:18]} 9. Bxc4 {[%emt 0:00:03] The position is equal.} Qxc5 {[%emt 0:00:01]} 10. Bd3 {[%emt 0:00:10]} Nbd7 $146 {[%emt 0:00:25]} (10... b6 11. b4 Qc7 12. Bb2 Bb7 13. Rc1 Rc8 14. Qb1 Qd8 15. O-O Nbd7 16. Rfd1 h6 {1-0 Andreikin,D (2724)-Wojtaszek,R (2725) Jerusalem FIDE GP 2019 (1.4)}) 11. b4 {[%emt 0:00:30] Prevents b6.} Qc7 {[%emt 0:00:02]} 12. Bb2 {[%emt 0:00:03]} b6 {[%emt 0:00:03]} 13. Rc1 {[%emt 0:00:20]} Qd8 {[%emt 0:00:58] [#]} (13... Qb8 $11) 14. O-O {[%emt 0:00:17] White has more active pieces. The black rooks are passive.} (14. e4 $1 $16 {[%cal Re4e5]}) 14... Bb7 $14 {[%emt 0:00:05]} 15. Ng5 {[%emt 0:00:41]} h6 {[%emt 0:00:14]} 16. Nh7 {[%emt 0:00:00]} Re8 {[%emt 0:00:10]} 17. Rfd1 {[%emt 0:00:02][%cal Od3b5]} Qb8 {[%emt 0:02:43]} 18. Nxf6+ {[%emt 0:01:40]} Nxf6 {[%emt 0:00:00]} 19. Qe2 {[%emt 0:00:02]} a5 {[%emt 0:00:37]} 20. b5 {[%emt 0:00:17]} a4 {[%emt 0:00:51]} (20... Ra7 $11) 21. h3 {[%emt 0:00:02]} (21. Bc2 $16) 21... Rc8 $11 {[%emt 0:00:06]} 22. Bb1 {[%emt 0:00:08]} Bd6 {[%emt 0:00:11]} 23. Qd3 {[%emt 0:00:09]} Rd8 {[%emt 0:00:15]} 24. Qc2 {[%emt 0:00:09]} Rc8 {[%emt 0:00:01]} 25. Qd3 {[%emt 0:00:24]} Rd8 {[%emt 0:00:01] ...Bh2+ is the strong threat.} 26. Qc4 {[%emt 0:00:04]} Rc8 {[%emt 0:00:08]} 27. Qd4 {[%emt 0:00:12]} Bc5 {[%emt 0:00:34]} 28. Qh4 {[%emt 0:00:05]} Be7 {[%emt 0:00:00]} (28... Qe5 $1 $15 {keeps the upper hand.} 29. Rd3 (29. Nxa4 $2 Rxa4 30. Qxa4 Qxb2 $19) 29... Be7) 29. Nxa4 $16 {[%emt 0:00:20] White has a queen side majority} Qa7 {[%emt 0:00:01]} 30. Rxc8+ {[%emt 0:00:24]} Rxc8 {[%emt 0:00:00]} 31. Qd4 {[%emt 0:00:07]} e5 {[%emt 0:00:12]} 32. Qh4 {[%emt 0:00:12]} (32. Qxe5 $16 Bxa3 (32... Qxa4 33. Rd4 $18) 33. Qd4 (33. Nxb6 Re8 $16) 33... Bxb2 34. Nxb2) 32... Nd5 {[%emt 0:00:07]} (32... Bd5 $1 $11 33. Nc3 (33. Bxe5 $2 Bb3 $19) 33... Bb3) 33. Qe4 {[%emt 0:00:11]} Nf6 {[%emt 0:00:01] Against Qh7+} 34. Qh4 {[%emt 0:00:13]} (34. Qxe5 $16 Bxa3 (34... Qxa4 35. Rd4 $16) 35. Qd4 (35. Nxb6 Re8 $16) 35... Bxb2 36. Nxb2) 34... Nd5 $11 {[%emt 0:00:00]} 35. Qg4 {[%emt 0:00:42][%cal Od1d5]} Nf6 $36 {[%emt 0:00:01][%cal Bd5f6,Bf6e4,Be4d6,Bd6c4,Bc4e3][%mdl 2080] Black is more active.} 36. Qf5 {[%emt 0:00:13][%cal Od1d7]} Qxa4 {[%emt 0:00:03]} 37. Rd7 {[%emt 0:00:01]} Be4 {[%emt 0:00:39]} (37... Nxd7 38. Qh7+ Kf8 39. Qh8#) 38. Bxe4 {[%emt 0:00:05]} Qxe4 {[%emt 0:00:00]} (38... Nxd7 39. Qh7+ Kf8 40. Qh8#) 39. Qxe4 {[%emt 0:00:03]} (39. Qxe5 $2 Qxe5 $19 (39... Nxd7 40. Qxg7#)) 39... Nxe4 {[%emt 0:00:00]} 40. Rxe7 {[%emt 0:00:01][%mdl 4096] Endgame KRB-KRN. White is a pawn up.} f6 {[%emt 0:00:00]} 41. f3 {[%emt 0:00:39]} Nd6 {[%emt 0:00:01][%cal Oc8c2]} 42. a4 {[%emt 0:00:06]} Rc2 {[%emt 0:00:03]} 43. Ba3 {[%emt 0:00:02]} Nc4 {[%emt 0:00:01][%csl LRa3,LRe3]} 44. Bb4 {[%emt 0:00:01]} Nxe3 {[%emt 0:00:02]} 45. a5 $1 {[%emt 0:00:02]} bxa5 {[%emt 0:00:02]} (45... Nxg2 $2 46. axb6 Kh7 47. b7 $18) 46. b6 {[%emt 0:00:01]} Rb2 {[%emt 0:00:01]} (46... axb4 $2 47. b7 Rxg2+ 48. Kh1 $18) (46... Rxg2+ $11 47. Kh1 Rb2 (47... axb4 $2 48. b7 $18)) 47. b7 $16 {[%emt 0:00:18]} Rxb4 {[%emt 0:00:02] KRN-KR} 48. Re8+ {[%emt 0:00:00]} Kf7 {[%emt 0:00:00]} 49. b8=Q {[%emt 0:00:01]} ({Reject} 49. b8=R Ra4 $11) 49... Rxb8 {[%emt 0:00:00]} 50. Rxb8 {[%emt 0:00:00] KR-KN} h5 {[%emt 0:00:00]} 51. Rb7+ {[%emt 0:00:02]} Kg6 {[%emt 0:00:01]} 52. Rc7 {[%emt 0:00:02]} h4 {[%emt 0:00:01]} 53. Rc5 {[%emt 0:00:02]} Nf5 {[%emt 0:00:00]} 54. Rxa5 {[%emt 0:00:01]} Nd4 {[%emt 0:00:00]} 55. Ra4 {[%emt 0:00:00]} Kh5 {[%emt 0:00:02]} 56. Kf2 {[%emt 0:00:01][%cal Of3f4]} Ne6 {[%emt 0:00:00]} 57. Ra6 {[%emt 0:00:00]} Nf4 {[%emt 0:00:01]} 58. Ra7 {[%emt 0:00:00]} Kg6 {[%emt 0:00:00]} 59. Ra6 {[%emt 0:00:01]} (59. Kf1 $16) 59... Kh6 {[%emt 0:00:00]} (59... Kh5 $1 $11) 60. Ra3 {[%emt 0:00:01]} Kg5 {[%emt 0:00:01]} 61. Rb3 {[%emt 0:00:00]} Kh6 {[%emt 0:00:01]} 62. Rb8 {[%emt 0:00:00]} Kg6 {[%emt 0:00:00]} 63. Rg8 {[%emt 0:00:01]} Kh7 {[%emt 0:00:01]} 64. Rf8 {[%emt 0:00:01]} Kg6 {[%emt 0:00:00]} 65. Rh8 {[%emt 0:00:00]} Kg5 {[%emt 0:00:01]} 66. Rh7 {[%emt 0:00:01]} g6 {[%emt 0:00:01]} 67. Rh8 {[%emt 0:00:00]} Nh5 {[%emt 0:00:02]} 68. Rb8 {[%emt 0:00:01]} Nf4 {[%emt 0:00:00]} 69. Rb5 {[%emt 0:00:00]} Nh5 {[%emt 0:00:01]} 70. Ra5 {[%emt 0:00:00]} Nf4 {[%emt 0:00:00]} 71. Ra4 {[%emt 0:00:01]} Nh5 $2 {[%emt 0:00:00] A mistake that costs the game.} (71... Kf5 $16 {was worth a try.}) 72. Rg4+ $18 {[%emt 0:00:00]} Kh6 {[%emt 0:00:03]} 73. Rxh4 {[%emt 0:00:01] Threatens to win with g4.} g5 {[%emt 0:00:00]} 74. Ra4 {[%emt 0:00:00]} Nf4 {[%emt 0:00:01]} 75. Ra6 {[%emt 0:00:01]} Kg6 {[%emt 0:00:00]} 76. Ra5 {[%emt 0:00:00]} Nd3+ {[%emt 0:00:01]} 77. Kg1 {[%emt 0:00:02]} Nf4 {[%emt 0:00:00]} 78. Ra3 {[%emt 0:00:01]} Ne2+ {[%emt 0:00:01]} 79. Kh2 {[%emt 0:00:00]} Nd4 {[%emt 0:00:00]} 80. Ra4 {[%emt 0:00:01]} Ne2 {[%emt 0:00:00]} 81. h4 {[%emt 0:00:00]} gxh4 {[%emt 0:00:01]} 82. Rxh4 {[%emt 0:00:00]} Nf4 {[%emt 0:00:00]} 83. Rh8 {[%emt 0:00:01]} Ne6 {[%emt 0:00:01]} 84. Rg8+ {[%emt 0:00:01]} Ng7 {[%emt 0:00:00]} 85. Ra8 {[%emt 0:00:00]} Kf7 {[%emt 0:00:00]} 86. Kh3 {[%emt 0:00:01]} Kg6 {[%emt 0:00:00]} 87. Ra7 {[%emt 0:00:00]} Nf5 {[%emt 0:00:01]} 88. Ra6 {[%emt 0:00:01]} Ne3 {[%emt 0:00:00]} 89. Kg3 {[%emt 0:00:00]} Nf5+ {[%emt 0:00:00]} 90. Kf2 {[%emt 0:00:01]} Nd4 {[%emt 0:00:01]} 91. g3 {[%emt 0:00:01]} Kg5 {[%emt 0:00:00]} 92. Ra5 {[%emt 0:00:01]} Kg6 {[%emt 0:00:01]} 93. Rc5 {[%emt 0:00:01]} Ne6 {[%emt 0:00:01]} 94. Rc1 {[%emt 0:00:00]} Nd4 {[%emt 0:00:00]} 95. Re1 {[%emt 0:00:01]} Nf5 {[%emt 0:00:00]} 96. Re2 {[%emt 0:00:01]} Nd4 {[%emt 0:00:01]} 97. Re4 {[%emt 0:00:00]} Ne6 {[%emt 0:00:00]} 98. Rg4+ {[%emt 0:00:00]} Kf5 {[%emt 0:00:00]} 99. Rb4 {[%emt 0:00:01]} Ng5 {[%emt 0:00:00]} 100. f4 {[%emt 0:00:01][%cal Bf3f4,Bf4g5][%mdl 32]} Kg6 $2 {[#]} (100... Ne6 $18) 101. fxg5 {[%emt 0:00:01] Weighted Error Value: White=0.12 (very precise) /Black=0.19 (very precise)   Loses game:     	---       	Black=1      Mistake:       	White=5     	Black=7      Inaccurate:     	White=2     	Black=1      OK:         	White=31    	Black=34     Best:        	White=7     	Black=4      Strong:       	White=1     	---} 1-0